bitfinex/quotes_SOLUSD_20250917
["timestamp","ask_amount","ask_price","bid_price","bid_amount"]
[1758135859253,37.86,235.32,235.16,26.0]
[1758135859666,37.86,235.32,235.25,5.1959853]
[1758135859869,18.79157931,235.34,235.25,5.1959853]
[1758135860054,37.89,235.35,235.3,5.1959853]
[1758135860361,37.89,235.35,235.24,4.2508504]
[1758135860552,37.89,235.35,235.29,5.1959853]
[1758135860737,0.03,235.35,235.29,5.1959853]
[1758135861158,0.03,235.35,235.11,20.06]
[1758135861159,13.59559401,235.34,235.11,20.06]
[1758135861355,13.59559401,235.34,235.26,5.1959853]
[1758135861560,26.0,235.34,235.26,5.1959853]
[1758135861763,13.62559401,235.35,235.26,5.1959853]
[1758135861952,13.62559401,235.35,235.28,5.1959853]
[1758135862153,4.24917141,235.34,235.2,10.62910049]
[1758135862344,0.03,235.35,235.28,5.1959853]
[1758135862865,37.87,235.35,235.32,5.1959853]
[1758135863048,37.87,235.35,235.23,26.0]
[1758135863253,0.03,235.35,235.34,5.1959853]
[1758135863453,4.27903694,235.35,235.13,4.25293303]
[1758135863765,13.59559401,235.34,235.14,26.0]
[1758135864071,14.9015141,235.35,235.26,5.1959853]
[1758135864374,37.82,235.34,235.28,5.1959853]
[1758135864743,0.03,235.35,235.32,5.1959853]
[1758135865840,0.03,235.35,235.31,5.1959853]
[1758135866669,0.03,235.35,235.29,4.25006154]
[1758135866670,0.03,235.35,235.33,5.1959853]
[1758135867168,0.03,235.35,235.25,4.25079702]
[1758135867356,0.03,235.35,235.33,5.1959853]
[1758135868176,0.03,235.35,235.33,9.44531958]
[1758135868381,0.03,235.35,235.34,5.1959853]
[1758135868973,0.03,235.35,235.26,4.25061633]
[1758135869374,0.03,235.35,235.32,5.1959853]
[1758135869586,0.03,235.35,235.2,5.1959853]
[1758135869756,0.03,235.35,235.33,5.1959853]
[1758135871175,0.03,235.35,235.11,20.06]
[1758135871375,13.62559401,235.35,235.26,5.1959853]
[1758135871582,0.03,235.35,235.3,5.1959853]
[1758135871886,37.78,235.34,235.3,5.1959853]
[1758135872176,4.24935197,235.33,235.28,5.1959853]
[1758135872362,13.59559401,235.32,235.1,12.87288285]
[1758135872678,13.59559401,235.32,235.24,5.1959853]
[1758135872879,13.59559401,235.3,235.24,5.1959853]
[1758135873063,37.78,235.31,235.26,5.1959853]
[1758135873473,37.78,235.31,235.25,5.1959853]
[1758135874199,4.24989375,235.3,235.25,5.1959853]
[1758135874425,4.27900265,235.35,235.29,5.1959853]
[1758135874695,37.81,235.35,235.33,5.1959853]
[1758135874912,0.03,235.35,235.33,5.1959853]
[1758135875500,0.03,235.35,235.34,5.1959853]
[1758135875867,0.03,235.35,235.34,7.67465605]
[1758135882311,0.03,235.35,235.25,10.62699256]
[1758135882504,0.03,235.35,235.33,7.67465605]
[1758135882712,0.03,235.35,235.25,10.62699256]
[1758135882713,0.03,235.35,235.31,7.67465605]
[1758135882901,0.03,235.35,235.3,7.67465605]
[1758135883100,0.03,235.35,235.28,7.67465605]
[1758135883417,0.03,235.35,235.27,7.67465605]
[1758135883619,0.03,235.35,235.2,0.06]
[1758135883801,13.59559401,235.33,235.22,7.67465605]
[1758135883992,7.67465605,235.29,235.2,7.73465605]
[1758135884322,37.72,235.33,235.2,7.73465605]
[1758135884538,13.62559401,235.35,235.28,7.67465605]
[1758135884827,37.72,235.34,235.28,7.67465605]
[1758135884986,28.49708154,235.35,235.28,7.67465605]
[1758135885189,14.90148753,235.35,235.28,7.67465605]
[1758135886301,37.72,235.34,235.28,7.67465605]
[1758135886700,14.90148753,235.35,235.2,33.73465605]
[1758135886701,0.03,235.35,235.32,7.67465605]
[1758135886888,0.03,235.35,235.25,26.0]
[1758135887093,0.03,235.35,235.29,7.67465605]
[1758135887300,37.72,235.34,235.21,4.25151991]
[1758135887504,21.30025006,235.35,235.28,7.67465605]
[1758135887505,37.72,235.33,235.28,7.67465605]
[1758135887710,0.03,235.35,235.23,0.5]
[1758135887913,0.03,235.35,235.3,7.67465605]
[1758135888221,0.03,235.35,235.3,11.92444972]
[1758135888524,0.03,235.35,235.32,7.67465605]
[1758135888892,0.03,235.35,235.26,26.0]
[1758135889307,0.03,235.35,235.31,7.67465605]
[1758135889693,0.03,235.35,235.33,7.67465605]
[1758135890098,0.03,235.35,235.32,7.67465605]
[1758135890316,0.03,235.35,235.31,7.67465605]
[1758135890522,0.03,235.35,235.29,7.67465605]
[1758135890906,0.03,235.35,235.24,10.62744431]
[1758135891120,0.03,235.35,235.3,7.67465605]
[1758135891624,0.03,235.35,235.23,4.25115844]
[1758135891625,0.03,235.35,235.31,7.67465605]
[1758135892117,0.03,235.35,235.32,4.24953255]
[1758135892296,0.03,235.35,235.33,7.67465605]
[1758135892503,37.68,235.43,235.33,7.67465605]
[1758135892713,41.9275673,235.43,235.37,7.67465605]
[1758135893608,4.2475673,235.43,235.37,7.67465605]
[1758135893821,13.59559401,235.47,235.42,7.67465605]
[1758135894130,4.24700586,235.46,235.42,7.67465605]
[1758135894441,7.67465605,235.53,235.44,7.67465605]
[1758135894645,37.68,235.5,235.31,26.0]
[1758135894931,13.59559401,235.52,235.31,26.0]
[1758135894932,37.68,235.49,235.44,7.67465605]
[1758135895604,37.66,235.49,235.44,7.67465605]
[1758135895817,37.66,235.49,235.36,7.67465605]
[1758135896034,13.59559401,235.52,235.44,7.67465605]
[1758135896346,4.2462845,235.5,235.44,11.92198818]
[1758135896541,4.2462845,235.5,235.44,7.67465605]
[1758135896843,0.03,235.46,235.44,7.67465605]
[1758135897013,0.03,235.46,235.44,11.92202003]
[1758135897431,0.03,235.46,235.44,7.67465605]
[1758135897910,0.03,235.46,235.44,11.92198658]
[1758135898106,37.66,235.52,235.44,11.92198658]
[1758135898313,41.90610074,235.52,235.45,7.67465605]
[1758135898518,12.78,235.62,235.47,7.67465605]
[1758135898745,13.59559401,235.55,235.47,7.67465605]
[1758135898953,13.59559401,235.55,235.49,7.67465605]
[1758135899112,2.219706,235.65,235.47,26.0]
[1758135899312,7.67465605,235.62,235.47,26.0]
[1758135899534,7.67465605,235.6,235.51,7.67465605]
[1758135899838,13.59559401,235.61,235.53,7.67465605]
[1758135900039,37.64,235.62,235.53,7.67465605]
[1758135900252,37.64,235.62,235.48,14.86325802]
[1758135900414,12.96619677,235.7,235.56,7.67465605]
[1758135900614,12.78,235.71,235.56,26.0]
[1758135900827,39.85908602,235.76,235.67,7.67465605]
[1758135901031,37.64,235.76,235.64,26.0]
[1758135901237,3.70113114,235.81,235.64,26.0]
[1758135901538,13.59559401,235.79,235.67,7.67465605]
[1758135901737,13.59559401,235.77,235.67,7.67465605]
[1758135901945,13.59559401,235.75,235.62,38.7896911]
[1758135902151,13.59559401,235.78,235.62,38.7896911]
[1758135902454,4.23962352,235.87,235.77,7.67465605]
[1758135902655,30.6,235.97,235.68,7.67465605]
[1758135902656,37.62,235.86,235.79,7.67465605]
[1758135902857,37.62,235.86,235.71,26.0]
[1758135903028,37.62,235.86,235.81,7.67465605]
[1758135903231,37.62,235.86,235.71,26.0]
[1758135903451,7.67465605,235.89,235.71,26.0]
[1758135903638,37.6,235.88,235.82,7.67465605]
[1758135903838,7.67465605,235.9,235.71,26.0]
[1758135903839,7.67465605,235.94,235.84,7.67465605]
[1758135904162,37.6,235.91,235.74,26.0]
[1758135904328,37.6,235.91,235.78,26.0]
[1758135904526,13.59559401,235.89,235.81,7.67465605]
[1758135904827,13.59559401,235.9,235.8,7.67465605]
[1758135905140,13.59559401,235.9,235.75,14.84623541]
[1758135905346,13.59559401,235.87,235.75,4.24178154]
[1758135905649,7.67465605,235.87,235.75,4.24178154]
[1758135905852,37.58,235.88,235.81,7.67465605]
[1758135906047,51.17559401,235.9,235.83,7.67465605]
[1758135906251,51.17559401,235.9,235.75,4.24178154]
[1758135906252,41.81926406,235.89,235.75,14.84623541]
[1758135906435,20.0,236.07,235.75,14.84623541]
[1758135906648,7.67465605,235.93,235.85,7.67465605]
[1758135906850,13.59559401,235.93,235.85,20.23168754]
[1758135907150,13.59559401,235.89,235.8,7.67465605]
[1758135907351,7.67465605,235.87,235.71,26.0]
[1758135907664,7.67465605,235.87,235.78,7.67465605]
[1758135907953,51.17559401,235.89,235.76,7.67465605]
[1758135907954,7.67465605,235.84,235.76,7.67465605]
[1758135908336,7.67465605,235.82,235.66,6.59908017]
[1758135908542,4.24034261,235.83,235.73,7.67465605]
[1758135908753,4.24034261,235.83,235.75,7.67465605]
[1758135908754,13.59559401,235.83,235.75,7.67465605]
[1758135909059,7.67465605,235.83,235.74,7.67465605]
[1758135909265,7.67465605,235.81,235.69,12.93363273]
[1758135909441,7.67465605,235.79,235.64,4.24373025]
[1758135909636,13.59559401,235.79,235.64,4.24373025]
[1758135909836,13.59559401,235.79,235.69,7.67465605]
[1758135910040,13.59559401,235.77,235.64,12.52236207]
[1758135910239,11.91625767,235.76,235.6,4.24448217]
[1758135910434,7.67465605,235.74,235.66,7.67465605]
[1758135910650,13.59559401,235.77,235.63,26.0]
[1758135910850,7.67465605,235.75,235.63,26.0]
[1758135911066,37.56,235.78,235.71,7.67465605]
[1758135911258,41.80130059,235.78,235.64,12.74185641]
[1758135911436,13.59559401,235.76,235.65,0.6]
[1758135911637,13.59559401,235.76,235.67,7.67465605]
[1758135911873,4.23872499,235.92,235.73,7.67465605]
[1758135912160,37.54,235.91,235.79,7.67465605]
[1758135912352,7.67465605,235.83,235.71,26.0]
[1758135912664,45.21465605,235.83,235.75,7.67465605]
[1758135912859,37.54,235.83,235.67,26.0]
[1758135913037,37.54,235.83,235.77,7.67465605]
[1758135913360,41.77998304,235.85,235.77,7.67465605]
[1758135913663,45.21465605,235.85,235.77,7.67465605]
[1758135913851,45.21465605,235.85,235.71,26.0]
[1758135914157,13.59559401,235.84,235.73,26.0]
[1758135914365,13.59559401,235.84,235.65,4.24358158]
[1758135914366,4.24052243,235.82,235.65,4.24358158]
[1758135914531,7.67465605,235.79,235.64,13.02516517]
[1758135914733,4.24052243,235.82,235.58,20.0]
[1758135914734,7.67465605,235.77,235.68,7.67465605]
[1758135914956,37.52,235.77,235.62,10.84308613]
[1758135915133,7.67465605,235.73,235.52,7.67465605]
[1758135915338,7.67465605,235.66,235.55,7.67465605]
[1758135915555,37.52,235.67,235.55,7.67465605]
[1758135915754,37.52,235.67,235.59,7.67465605]
[1758135915965,13.59559401,235.71,235.65,7.67465605]
[1758135916178,37.52,235.72,235.68,7.67465605]
[1758135916467,13.59559401,235.71,235.56,4.24520292]
[1758135916638,7.67465605,235.7,235.61,7.67465605]
[1758135916846,7.67465605,235.68,235.54,0.6]
[1758135917050,7.67465605,235.66,235.54,0.6]
[1758135917249,7.67465605,235.66,235.51,10.61484175]
[1758135917250,7.67465605,235.6,235.5,7.67465605]
[1758135917469,13.59559401,235.65,235.55,7.67465605]
[1758135917652,7.67465605,235.63,235.55,7.67465605]
[1758135917853,7.67465605,235.63,235.49,27.66571504]
[1758135918165,37.52,235.67,235.48,7.67465605]
[1758135918166,7.67465605,235.57,235.48,7.67465605]
[1758135918345,7.67465605,235.53,235.46,0.03]
[1758135918966,7.67465605,235.51,235.46,0.03]
[1758135919150,51.11559401,235.5,235.46,0.03]
[1758135919354,37.52,235.5,235.46,0.03]
[1758135919670,13.59559401,235.49,235.46,0.03]
[1758135920449,11.9213012,235.48,235.46,0.03]
[1758135921145,26.0,235.45,235.43,0.03]
[1758135921342,47.27025006,235.44,235.27,12.57140111]
[1758135921546,13.59559401,235.38,235.24,14.87842203]
[1758135921772,14.86325802,235.48,235.24,14.87842203]
[1758135921773,12.63466249,235.47,235.37,7.67465605]
[1758135921959,12.63466249,235.47,235.46,7.67465605]
[1758135922372,13.59559401,235.47,235.46,7.67465605]
[1758135922544,13.59559401,235.5,235.46,7.67465605]
[1758135923246,13.59559401,235.5,235.48,7.67465605]
[1758135923442,26.0,235.53,235.48,7.67465605]
[1758135923644,37.52,235.52,235.4,26.0]
[1758135923883,37.52,235.53,235.4,26.0]
[1758135924049,37.52,235.53,235.51,7.67465605]
[1758135924656,37.52,235.53,235.4,26.0]
[1758135924865,13.59559401,235.52,235.41,7.67465605]
[1758135925177,13.59559401,235.52,235.43,7.67465605]
[1758135925483,13.59559401,235.52,235.44,7.67465605]
[1758135925779,13.59559401,235.52,235.36,7.67465605]
[1758135926069,13.59559401,235.48,235.39,7.67465605]
[1758135926242,13.59559401,235.46,235.37,7.67465605]
[1758135926447,13.59559401,235.46,235.26,21.03630686]
[1758135926448,13.59559401,235.44,235.26,6.15914969]
[1758135926657,21.27025006,235.44,235.28,0.6]
[1758135926865,13.59559401,235.44,235.34,7.67465605]
[1758135927063,21.27025006,235.44,235.34,7.67465605]
[1758135927261,13.59559401,235.43,235.28,0.6]
[1758135927476,13.59559401,235.46,235.38,7.67465605]
[1758135928077,13.59559401,235.46,235.4,7.67465605]
[1758135928475,37.5,235.47,235.41,4.2479079]
[1758135928678,37.5,235.47,235.4,7.67465605]
[1758135928884,23.67713003,235.65,235.42,7.67465605]
[1758135929062,13.59559401,235.54,235.48,7.67465605]
[1758135929264,37.5,235.55,235.5,7.67465605]
[1758135929665,37.5,235.55,235.48,7.67465605]
[1758135930160,37.5,235.55,235.5,7.67465605]
[1758135930355,37.5,235.55,235.52,7.67465605]
[1758135930665,26.0,235.64,235.52,11.92055037]
[1758135930869,37.5,235.6,235.56,7.67465605]
[1758135931086,37.5,235.6,235.58,7.67465605]
[1758135931252,59.65998486,235.75,235.58,7.67465605]
[1758135931253,4.24196148,235.74,235.58,7.67465605]
[1758135931459,45.17465605,235.73,235.63,7.67465605]
[1758135931677,45.17465605,235.73,235.52,26.06974918]
[1758135931678,45.17465605,235.73,235.62,7.67465605]
[1758135931883,26.0,235.7,235.62,7.67465605]
[1758135932195,13.59559401,235.69,235.62,7.67465605]
[1758135932656,30.58,235.75,235.66,7.67465605]
[1758135932854,12.7160821,235.78,235.7,7.67465605]
[1758135933061,4.23944378,235.88,235.74,7.67465605]
[1758135933260,7.67465605,235.85,235.68,26.0]
[1758135933477,7.67465605,235.85,235.73,7.67465605]
[1758135933478,13.59559401,235.82,235.73,7.67465605]
[1758135933781,37.48,235.81,235.73,7.67465605]
[1758135934282,0.06,235.75,235.68,26.0]
[1758135934504,0.06,235.75,235.73,7.67465605]
[1758135935283,0.06,235.75,235.72,7.67465605]
[1758135935473,0.06,235.75,235.68,26.0]
[1758135935678,0.06,235.75,235.68,30.24296497]
[1758135936001,0.06,235.75,235.74,5.17575646]
[1758135936684,0.06,235.78,235.74,9.41771794]
[1758135936888,25.17575646,236.04,235.77,26.0]
[1758135936889,10.59325815,236.0,235.77,26.0]
[1758135937094,13.59559401,235.92,235.77,26.0]
[1758135937401,13.59559401,235.88,235.78,5.17575646]
[1758135938299,5.17575646,235.9,235.78,5.17575646]
[1758135938490,13.59559401,235.85,235.68,26.0]
[1758135938693,37.46,235.84,235.76,5.17575646]
[1758135938886,41.70026791,235.84,235.76,5.17575646]
[1758135939086,37.46,235.84,235.76,5.17575646]
[1758135939478,37.46,235.84,235.78,5.17575646]
[1758135940076,37.46,235.84,235.74,26.0]
[1758135940396,41.70024177,235.84,235.71,4.24250137]
[1758135940582,37.46,235.84,235.76,5.17575646]
[1758135940899,37.46,235.84,235.78,5.17575646]
[1758135941104,41.70026029,235.84,235.74,26.0]
[1758135941303,13.59559401,235.83,235.67,4.24304768]
[1758135941473,13.59559401,235.83,235.71,5.17575646]
[1758135941679,5.17575646,235.81,235.71,5.17575646]
[1758135942014,13.59559401,235.81,235.72,5.17575646]
[1758135942310,37.46,235.84,235.77,5.17575646]
[1758135942475,37.46,235.84,235.67,26.0]
[1758135942818,37.46,235.84,235.74,10.60448292]
[1758135942996,13.59559401,235.81,235.68,14.85064494]
[1758135943178,13.59559401,235.83,235.74,5.17575646]
[1758135943378,13.59559401,235.83,235.68,14.85064494]
[1758135943613,13.59559401,235.83,235.77,5.17575646]
[1758135943984,13.59559401,235.83,235.68,14.85064494]
[1758135944213,13.59559401,235.83,235.75,5.17575646]
[1758135944596,13.59559401,235.83,235.76,4.24160162]
[1758135944785,13.59559401,235.83,235.75,5.17575646]
[1758135944985,13.59559401,235.83,235.74,4.24182173]
[1758135945210,13.59559401,235.81,235.74,5.17575646]
[1758135945599,13.59559401,235.78,235.62,5.17575646]
[1758135945886,37.42,235.77,235.7,5.17575646]
[1758135946311,37.42,235.77,235.72,5.17575646]
[1758135946785,41.66149182,235.77,235.7,5.17575646]
[1758135946986,37.42,235.77,235.7,5.17575646]
[1758135947220,37.42,235.77,235.72,5.17575646]
[1758135947519,37.42,235.77,235.63,4.24394177]
[1758135947520,13.59559401,235.76,235.63,4.24394177]
[1758135947718,13.59559401,235.76,235.69,5.17575646]
[1758135947918,13.59559401,235.76,235.63,14.8537962]
[1758135948124,13.59559401,235.76,235.57,26.0]
[1758135948286,18.77135047,235.76,235.53,37.4]
[1758135948490,13.59559401,235.76,235.65,5.17575646]
[1758135948715,13.59559401,235.76,235.67,5.17575646]
[1758135948890,18.77135047,235.74,235.66,5.17575646]
[1758135949219,13.59559401,235.74,235.53,14.86010274]
[1758135949550,13.59559401,235.71,235.64,5.17575646]
[1758135949698,37.4,235.7,235.66,5.17575646]
[1758135949901,50.99559401,235.72,235.68,5.17575646]
[1758135950106,50.99559401,235.72,235.56,0.6]
[1758135950315,56.17135047,235.72,235.63,5.17575646]
[1758135950498,50.99559401,235.72,235.67,5.17575646]
[1758135950888,50.99559401,235.72,235.53,74.59663955]
[1758135950889,4.24250137,235.71,235.54,14.85947184]
[1758135951116,4.24250137,235.71,235.65,5.17575646]
[1758135951326,18.77135047,235.7,235.6,5.17575646]
[1758135951628,13.59559401,235.65,235.52,3.67555432]
[1758135951909,5.17575646,235.66,235.57,5.17575646]
[1758135951910,13.59559401,235.63,235.57,5.17575646]
[1758135952090,13.59559401,235.63,235.59,5.17575646]
[1758135952293,18.77135047,235.63,235.5,4.2462845]
[1758135952491,18.77135047,235.63,235.53,5.17575646]
[1758135952690,13.59559401,235.56,235.46,0.03]
[1758135952926,13.59559401,235.54,235.48,5.17575646]
[1758135953086,17.84120073,235.54,235.46,0.03]
[1758135953307,17.84120073,235.54,235.46,5.20575646]
[1758135953718,14.85951518,235.54,235.46,0.03]
[1758135953909,13.59559401,235.46,235.4,3.55423729]
[1758135954109,26.0,235.49,235.4,3.55423729]
[1758135954360,37.38,235.47,235.42,4.2476293]
[1758135954542,26.0,235.57,235.44,4.24736663]
[1758135954845,37.38,235.62,235.4,24.24808836]
[1758135955020,37.38,235.61,235.44,26.0]
[1758135955211,26.0,235.68,235.44,26.0]
[1758135955513,13.59559401,235.63,235.61,0.03]
[1758135955930,50.97559401,235.62,235.61,0.03]
[1758135956431,13.59559401,235.62,235.61,0.03]
[1758135957034,13.59559401,235.64,235.61,0.03]
[1758135957236,37.38,235.68,235.63,5.17575646]
[1758135957417,37.38,235.68,235.67,5.17575646]
[1758135957418,50.97559401,235.68,235.67,5.17575646]
[1758135957613,0.06,235.78,235.67,5.17575646]
[1758135957837,37.38,235.77,235.7,5.17575646]
[1758135958217,37.38,235.77,235.62,5.17575646]
[1758135958421,26.0,235.74,235.69,5.17575646]
[1758135958625,13.59559401,235.73,235.61,0.03]
[1758135958829,26.0,235.74,235.62,5.17575646]
[1758135959025,5.17575646,235.68,235.61,0.03]
[1758135959356,50.95559401,235.67,235.61,0.03]
[1758135959522,26.0,235.68,235.61,0.03]
[1758135959724,13.59559401,235.67,235.61,0.03]
[1758135959926,13.59559401,235.75,235.65,5.17575646]
[1758135960230,36.97260362,235.88,235.61,4.27426747]
[1758135960231,18.77135047,235.71,235.61,4.27426747]
[1758135960436,13.59559401,235.73,235.61,4.27427595]
[1758135960639,18.77135047,235.73,235.66,5.17575646]
[1758135960852,13.59559401,235.73,235.68,5.17575646]
[1758135961027,13.59559401,235.71,235.61,0.03]
[1758135961347,13.59559401,235.71,235.63,5.17575646]
[1758135961550,18.77135047,235.71,235.61,4.27425289]
[1758135961766,13.59559401,235.73,235.66,5.17575646]
[1758135962067,13.59559401,235.71,235.63,5.17575646]
[1758135962350,50.95559401,235.73,235.69,5.17575646]
[1758135962759,13.59559401,235.76,235.69,5.17575646]
[1758135962935,13.59559401,235.74,235.73,5.17575646]
[1758135963355,0.06,235.78,235.73,9.41773732]
[1758135963665,0.06,235.78,235.77,5.17575646]
[1758135964051,0.06,235.78,235.73,14.84733444]
[1758135964243,4.24142172,235.77,235.58,25.03071533]
[1758135964450,13.59559401,235.74,235.6,4.24438991]
[1758135964657,13.59559401,235.74,235.66,5.17575646]
[1758135964964,26.0,235.73,235.64,5.17575646]
[1758135965167,37.34,235.76,235.7,5.17575646]
[1758135965469,0.06,235.78,235.74,5.17575646]
[1758135965649,0.06,235.78,235.77,5.17575646]
[1758135965849,0.06,235.78,235.64,36.07190951]
[1758135966157,13.65559401,235.78,235.64,36.07190951]
[1758135966356,13.65559401,235.78,235.64,4.24369699]
[1758135966564,23.07267355,235.78,235.7,5.17575646]
[1758135966883,23.07267355,235.78,235.64,14.85310116]
[1758135967073,23.07267355,235.78,235.7,5.17575646]
[1758135967248,33.67577813,235.78,235.61,0.03]
[1758135967567,26.0,235.75,235.61,0.03]
[1758135967744,37.34,235.74,235.69,5.17575646]
[1758135967943,26.0,235.77,235.71,5.17575646]
[1758135968175,37.34,235.76,235.7,5.17575646]
[1758135968600,0.06,235.78,235.73,5.17575646]
[1758135968898,0.06,235.78,235.77,5.17575646]
[1758135969271,0.06,235.78,235.77,9.41717818]
[1758135969883,0.06,235.81,235.77,14.84497603]
[1758135970085,0.06,235.81,235.8,5.17575646]
[1758135970473,30.56,235.92,235.8,5.17575646]
[1758135970812,37.32,235.92,235.85,5.17575646]
[1758135971172,27.60925175,236.02,235.87,5.17575646]
[1758135971384,13.59559401,235.94,235.87,9.41525596]
[1758135971581,13.59559401,235.84,235.62,5.17575646]
[1758135971875,13.59559401,235.84,235.76,5.17575646]
[1758135972087,5.17575646,235.82,235.69,12.45984529]
[1758135972277,5.17575646,235.82,235.74,5.17575646]
[1758135972475,4.2408821,235.8,235.72,5.17575646]
[1758135972689,13.59559401,235.78,235.63,4.24394177]
[1758135972881,52.16122885,235.83,235.65,10.60895395]
[1758135973073,37.3,235.82,235.65,49.07983109]
[1758135973285,13.59559401,235.83,235.76,5.17575646]
[1758135973702,13.59559401,235.83,235.75,5.17575646]
[1758135974002,0.06,235.82,235.74,5.17575646]
[1758135974188,0.06,235.82,235.65,36.60895395]
[1758135974189,0.06,235.82,235.76,5.17575646]
[1758135974375,0.06,235.82,235.78,5.17575646]
[1758135974576,0.06,235.82,235.77,4.24136316]
[1758135975008,0.06,235.82,235.68,4.24304141]
[1758135975320,13.59559401,235.79,235.65,12.81647386]
[1758135975614,5.17575646,235.72,235.64,5.17575646]
[1758135975785,13.59559401,235.75,235.66,5.17575646]
[1758135975981,5.17575646,235.76,235.69,5.17575646]
[1758135976202,37.3,235.76,235.64,14.8531175]
[1758135976399,37.3,235.76,235.64,27.37293179]
[1758135976603,5.17575646,235.74,235.66,5.17575646]
[1758135976786,37.3,235.74,235.66,5.17575646]
[1758135976987,37.3,235.74,235.64,16.76352762]
[1758135977281,13.59559401,235.73,235.65,5.17575646]
[1758135977493,13.59559401,235.73,235.62,4.24412189]
[1758135977914,13.59559401,235.73,235.61,0.03]
[1758135977915,5.17575646,235.69,235.61,0.03]
[1758135978118,5.17575646,235.69,235.61,5.20575646]
[1758135978286,5.17575646,235.62,235.61,0.03]
[1758135978613,37.3,235.74,235.61,0.03]
[1758135978614,5.17575646,235.63,235.61,0.03]
[1758135978912,37.3,235.64,235.61,0.03]
[1758135979089,13.59559401,235.67,235.61,0.03]
[1758135979290,37.3,235.66,235.61,0.03]
[1758135979616,18.77135047,235.62,235.61,0.03]
[1758135980298,5.17575646,235.62,235.61,0.03]
[1758135980904,18.77135047,235.62,235.61,0.03]
[1758135981211,56.07135047,235.62,235.61,0.03]
[1758135981388,37.3,235.62,235.61,0.03]
[1758135981712,13.59559401,235.71,235.61,5.20575646]
[1758135981892,13.59559401,235.69,235.67,5.17575646]
[1758135982283,13.59559401,235.69,235.65,5.17575646]
[1758135982498,37.3,235.69,235.67,5.17575646]
[1758135983212,13.59559401,235.68,235.67,5.17575646]
[1758135983438,13.59559401,235.68,235.61,0.03]
[1758135983604,13.59559401,235.64,235.61,0.03]
[1758135983802,37.3,235.63,235.61,0.03]
[1758135984020,13.59559401,235.64,235.61,0.03]
[1758135984637,13.59559401,235.6,235.37,20.0]
[1758135984815,37.3,235.61,235.58,5.17575646]
[1758135985013,5.17575646,235.71,235.48,5.17575646]
[1758135985014,13.59559401,235.6,235.48,5.17575646]
[1758135985231,10.60680645,235.7,235.48,5.17575646]
[1758135985534,26.0,235.68,235.51,26.0]
[1758135985711,38.29559401,235.67,235.51,26.0]
[1758135985912,13.59559401,235.67,235.51,26.0]
[1758135986114,13.59559401,235.67,235.64,5.17575646]
[1758135986723,13.59559401,235.67,235.63,5.17575646]
[1758135986906,28.44700603,235.67,235.52,4.24592391]
[1758135987125,28.44700603,235.67,235.56,5.17575646]
[1758135987303,28.44700603,235.67,235.58,5.17575646]
[1758135987504,13.59559401,235.68,235.64,5.17575646]
[1758135987701,37.3,235.67,235.64,5.17575646]
[1758135987922,13.59559401,235.67,235.66,5.17575646]
[1758135988323,3.52201546,235.98,235.69,26.0]
[1758135988524,3.52201546,235.98,235.66,5.17575646]
[1758135988525,0.18,235.85,235.66,12.5633342]
[1758135988834,0.06,235.85,235.76,5.17575646]
[1758135989007,17.44,235.81,235.76,5.17575646]
[1758135989203,17.44,235.81,235.66,14.85188655]
[1758135989435,13.59559401,235.8,235.76,5.17575646]
[1758135990100,17.44,235.81,235.76,5.17575646]
[1758135990634,17.44,235.81,235.72,5.17575646]
[1758135990635,17.83653935,235.8,235.72,5.17575646]
[1758135990847,13.59559401,235.8,235.72,5.17575646]
[1758135991058,0.06,235.82,235.76,5.17575646]
[1758135991237,13.65559401,235.82,235.79,5.17575646]
[1758135991431,13.65559401,235.82,235.8,5.17575646]
[1758135991955,13.65559401,235.82,235.7,26.0]
[1758135992166,13.65559401,235.82,235.78,5.17575646]
[1758135992368,0.06,235.82,235.8,5.17575646]
[1758135992720,13.59559401,235.8,235.67,4.24319343]
[1758135992923,13.59559401,235.8,235.76,5.17575646]
[1758135993147,0.06,235.81,235.78,5.17575646]
[1758135993148,13.65559401,235.81,235.78,5.17575646]
[1758135993345,0.06,235.81,235.78,5.17575646]
[1758135993966,0.06,235.85,235.8,5.17575646]
[1758135994280,0.06,235.85,235.84,5.17575646]